[Event "Romanian Championship 2024"]
[Site "Eforie Nord"]
[Date "2024.02.26"]
[Round "4.3"]
[White "Bulmaga, Irina"]
[Black "Armenciu, Bogdan-Ovidiu"]
[Result "1-0"]
[ECO "A43"]
[WhiteElo "2439"]
[BlackElo "1936"]
[Annotator "RC"]
[PlyCount "73"]
[EventDate "2024.02.24"]
[EventType "swiss"]
[EventCountry "ROU"]
[SourceTitle "playchess.com"]
[Source "ChessBase"]
[SourceQuality "1"]
[TimeControl "40/5400+30:900+30"]

1. e4 {[%emt 0:00:04]} d6 {[%emt 0:00:27]} 2. d4 {[%emt 0:00:08]} Nf6 {[%emt 0:00:06]} 3. Nc3 {[%emt 0:00:06]} g6 {[%emt 0:00:04]} 4. f4 {[%emt 0:00:18]} Bg7 {[%emt 0:00:13]} 5. Nf3 {[%emt 0:00:14]} O-O {[%emt 0:06:28]} 6. Bd3 {[%emt 0:00:09]} c5 {[%emt 0:01:52]} 7. d5 {[%emt 0:00:20]} b5 {[%emt 0:02:20]} 8. Nxb5 {[%emt 0:09:02]} c4 {[%emt 0:00:04]} 9. Bxc4 {[%emt 0:00:34]} Nxe4 {[%emt 0:00:05]} 10. O-O {[%emt 0:06:49]} Qb6+ {[%emt 0:04:47]} 11. Nbd4 {[%emt 0:01:19]} Bg4 {[%emt 0:13:17]} 12. c3 {[%emt 0:04:40]} Bxf3 {[%emt 0:15:39]} 13. gxf3 {[%emt 0:02:22]} Bxd4+ {[%emt 0:01:56]} 14. Qxd4 {[%emt 0:09:53]} Qxd4+ {[%emt 0:00:16]} 15. cxd4 {[%emt 0:00:02]} Nf6 {[%emt 0:00:09]} 16. Re1 {[%emt 0:02:08]} Rc8 {[%emt 0:06:42]} 17. b3 {[%emt 0:01:19]} Rc7 {[%emt 0:06:21]} 18. Bd2 {[%emt 0:06:53]} a5 {[%emt 0:01:25]} 19. a4 {[%emt 0:02:31]} Kg7 {[%emt 0:01:37]} 20. Rac1 {[%emt 0:02:57]} Rb7 {[%emt 0:04:52]} 21. Kf2 {[%emt 0:01:24]} Raa7 {[%emt 0:01:06]} 22. Re2 {[%emt 0:03:26]} Nh5 {[%emt 0:06:49]} 23. f5 {[%emt 0:45:22]} f6 {[%emt 0:25:25]} 24. Bb5 {[%emt 0:00:00]} Kf7 {[%emt 0:00:00]} 25. Rc8 {[%emt 0:00:00]} Nd7 {[%emt 0:00:00]} 26. Bh6 {[%emt 0:00:00]} gxf5 {[%emt 0:00:00]} 27. Ke1 {[%emt 0:00:00]} Kg6 {[%emt 0:00:00]} 28. Bd2 {[%emt 0:00:00]} Kf7 {[%emt 0:00:00]} 29. Rg2 {[%emt 0:00:00]} f4 {[%emt 0:00:30]} 30. Rgg8 {[%emt 0:00:00]} e5 {[%emt 0:00:24]} 31. dxe6+ {[%emt 0:00:00]} Kxe6 {[%emt 0:00:09]} 32. Bc4+ {[%emt 0:00:00]} d5 {[%emt 0:01:01]} 33. Rc6+ {[%emt 0:00:00]} Ke7 {[%emt 0:00:23]} 34. Bxd5 {[%emt 0:00:00]} Nf8 {[%emt 0:00:40]} 35. Rc8 {[%emt 0:00:00]} Rd7 {[%emt 0:00:35]} 36. Bc4 {[%emt 0:00:00]} Ng6 {[%emt 0:00:44]} 37. Rge8+ {[%emt 0:00:00]} 1-0

[Event "Romanian Championship 2024"]
[Site "Eforie Nord"]
[Date "2024.02.26"]
[Round "4.4"]
[White "Serban, Cristian-Stefan"]
[Black "Magold, Filip"]
[Result "1/2-1/2"]
[ECO "D12"]
[WhiteElo "2309"]
[BlackElo "2400"]
[Annotator "TA"]
[PlyCount "87"]
[EventDate "2024.02.24"]
[EventType "swiss"]
[EventCountry "ROU"]
[SourceTitle "playchess.com"]
[Source "ChessBase"]
[SourceQuality "1"]
[TimeControl "40/5400+30:900+30"]

{[%evp 15,87,31,17,11,7,9,22,21,36,36,42,-10,0,-14,7,6,5,0,6,10,0,0,41,11,54,57,45,48,51,0,0,0,0,0,0,0,0,0,0,0,0,-8,0,0,0,0,0,0,0,-92,0,-25,-25,-26,-7,-23,-23,-23,0,-5,-4,-8,-8,-8,0,0,0,0,0,0,0,0,0,0]} 1. d4 {[%emt 0:00:05]} d5 {[%emt 0:00:18]} 2. c4 {[%emt 0:00:07]} c6 {[%emt 0:00:03]} 3. Nf3 {[%emt 0:00:13]} Nf6 {[%emt 0:00:05]} 4. e3 {[%emt 0:00:04]} Bf5 {[%emt 0:00:02]} 5. Nc3 {[%emt 0:00:07]} e6 {[%emt 0:00:04]} 6. Nh4 {[%emt 0:00:05]} Be4 {[%emt 0:00:02]} 7. f3 {[%emt 0:00:06]} Bg6 {[%emt 0:00:02]} 8. Qb3 {[%emt 0:00:07]} Qc7 {[%emt 0:00:03]} 9. Nxg6 {[%emt 0:01:38]} hxg6 {[%emt 0:00:07]} 10. Bd2 {[%emt 0:00:36]} Be7 {[%emt 0:01:44]} 11. g3 {[%emt 0:13:14]} Nbd7 {[%emt 0:01:51]} 12. cxd5 {[%emt 0:06:30]} exd5 {[%emt 0:04:20]} 13. Rc1 {[%emt 0:04:32]} (13. e4 $14) 13... g5 {[%emt 0:07:12]} 14. Kf2 {[%emt 0:13:14][%cal Oc3d5]} Qb6 {[%emt 0:21:18]} 15. Qxb6 {[%emt 0:08:43]} axb6 {[%emt 0:00:10]} 16. e4 dxe4 {[%emt 0:00:49]} 17. fxe4 {[%emt 0:00:46][%cal Oe4e5]} Bb4 {[%emt 0:01:40] [#] Threatens to win with ...Bxc3.} 18. Bd3 {[%emt 0:16:33]} O-O {[%emt 0:10:52]} 19. Bb1 {[%emt 0:05:20]} c5 {[%emt 0:11:01]} 20. a3 cxd4 {[%emt 0:05:59]} 21. axb4 {[%emt 0:03:58]} dxc3 {[%emt 0:00:04]} 22. bxc3 {[%emt 0:00:03]} ({Better is} 22. Rxc3 $14 g4 23. Rc7) 22... g4 $11 {[%emt 0:33:44]} 23. Bf4 {[%emt 0:04:41] Strongly threatening e5.} Rfe8 {[%emt 0:00:00]} 24. Rhd1 {[%emt 0:02:32]} Ne5 {[%emt 0:00:00]} 25. Bxe5 {[%emt 0:00:09]} Rxe5 {[%emt 0:00:00]} 26. Rd4 {[%emt 0:00:39]} Rc8 {[%emt 0:00:00]} 27. Bd3 {[%emt 0:00:45]} g6 {[%emt 0:00:00]} 28. Rd6 {[%emt 0:19:43]} Rc6 {[%emt 0:00:00]} 29. Rxc6 {[%emt 0:00:00]} bxc6 {[%emt 0:00:00][%mdl 4096] Endgame. KRB-KRN} 30. Re1 {[%emt 0:00:00]} Kg7 {[%emt 0:00:00]} 31. Re2 {[%emt 0:00:00]} Re8 {[%emt 0:00:00]} 32. Ra2 {[%emt 0:00:00]} (32. Ke3 $11 {remains equal.}) 32... Nd7 {[%emt 0:00:00]} (32... Nxe4+ $17 33. Bxe4 Rxe4) 33. Kg2 {[%emt 0:00:00]} Ne5 {[%emt 0:00:00]} 34. Be2 {[%emt 0:00:00]} Rd8 {[%emt 0:00:32]} 35. h3 {[%emt 0:00:00]} gxh3+ {[%emt 0:00:58]} 36. Kxh3 {[%emt 0:00:00]} c5 {[%emt 0:05:30]} 37. bxc5 {[%emt 0:00:00] The position is equal.} bxc5 {[%emt 0:00:30]} 38. Kg2 {[%emt 0:05:00]} Rb8 {[%emt 0:00:00]} 39. Ra5 {[%emt 0:00:00]} Rb2 {[%emt 0:00:00]} 40. Kf1 {[%emt 0:00:00]} Nd7 {[%emt 0:00:00]} 41. Bg4 {[%emt 0:00:00]} Nf6 {[%emt 0:01:43][%csl LRe4,LRg4]} 42. Bf3 {[%emt 0:00:00]} Nd7 {[%emt 0:00:04]} 43. Bg4 {[%emt 0:00:00]} Nf6 {[%emt 0:00:04][%csl LRe4,LRg4]} 44. Bf3 {[%emt 0:00:00] Weighted Error Value: White=0.12 (very precise) /Black=0.11 (very precise) .  Mistake:       	White=3     	Black=1      Inaccurate:     	White=1     	Black=2      OK:         	White=16    	Black=11     Best:        	White=2     	Black=1} 1/2-1/2

[Event "Romanian Championship 2024"]
[Site "Eforie Nord"]
[Date "2024.02.26"]
[Round "4.5"]
[White "Cnejev, Vladimir-Alexandru"]
[Black "Stoleriu, George"]
[Result "1-0"]
[ECO "B12"]
[WhiteElo "2311"]
[BlackElo "2391"]
[Annotator "RC"]
[PlyCount "79"]
[EventDate "2024.02.24"]
[EventType "swiss"]
[EventCountry "ROU"]
[SourceTitle "playchess.com"]
[Source "ChessBase"]
[SourceQuality "1"]
[TimeControl "40/5400+30:900+30"]

1. e4 {[%emt 0:00:03]} c6 {[%emt 0:00:04]} 2. d4 {[%emt 0:00:07]} d5 {[%emt 0:00:03]} 3. e5 {[%emt 0:00:07]} Bf5 {[%emt 0:00:13]} 4. h4 {[%emt 0:00:22]} h5 {[%emt 0:00:25]} 5. Bd3 {[%emt 0:00:08]} Bxd3 {[%emt 0:00:04]} 6. Qxd3 {[%emt 0:00:04]} e6 {[%emt 0:00:12]} 7. Nf3 {[%emt 0:00:22]} Ne7 {[%emt 0:10:25]} 8. Bg5 {[%emt 0:04:37]} Nd7 {[%emt 0:00:33]} 9. c4 {[%emt 0:02:20]} f6 {[%emt 0:08:10]} 10. exf6 {[%emt 0:14:59]} gxf6 {[%emt 0:01:02]} 11. Bd2 {[%emt 0:00:10]} Kf7 {[%emt 0:09:32]} 12. Nc3 {[%emt 0:00:58]} dxc4 {[%emt 0:02:57]} 13. Qxc4 {[%emt 0:00:10]} Nb6 {[%emt 0:00:19]} 14. Qb3 {[%emt 0:09:00]} Nf5 {[%emt 0:02:37]} 15. Rd1 {[%emt 0:01:26]} Nxd4 {[%emt 0:03:55]} 16. Nxd4 {[%emt 0:00:10]} Qxd4 {[%emt 0:00:03]} 17. Be3 {[%emt 0:01:25]} Qb4 {[%emt 0:00:31]} 18. Qc2 {[%emt 0:00:25]} Nd5 {[%emt 0:01:40]} 19. Rh3 {[%emt 0:09:51]} Bd6 {[%emt 0:08:35]} 20. Rd4 {[%emt 0:09:15]} Qa5 {[%emt 0:00:57]} 21. Bd2 {[%emt 0:11:35]} Qb6 {[%emt 0:08:33]} 22. Re4 {[%emt 0:08:27]} Rag8 {[%emt 0:03:36]} 23. Kf1 {[%emt 0:16:07]} Rg4 {[%emt 0:24:58]} 24. Rf3 {[%emt 0:00:27]} Rhg8 {[%emt 0:02:28]} 25. Bg5 {[%emt 0:06:32]} R8xg5 {[%emt 0:10:17]} 26. hxg5 {[%emt 0:00:10]} Rxg5 {[%emt 0:00:02]} 27. Re1 {[%emt 0:04:10]} Rg7 {[%emt 0:01:03]} 28. Qe4 {[%emt 0:00:30]} Nc7 {[%emt 0:00:38]} 29. Qh4 {[%emt 0:00:15]} Rg6 {[%emt 0:00:16]} 30. Qxh5 {[%emt 0:00:24]} Qxb2 {[%emt 0:00:02]} 31. Ne4 {[%emt 0:00:44]} Qe5 {[%emt 0:01:04]} 32. Rxf6+ {[%emt 0:00:27]} Qxf6 {[%emt 0:00:04]} 33. Nxf6 {[%emt 0:00:06]} Kxf6 {[%emt 0:00:02]} 34. Qh8+ {[%emt 0:00:18]} Ke7 {[%emt 0:01:00]} 35. Qb8 {[%emt 0:00:41]} b5 {[%emt 0:00:24]} 36. Rd1 {[%emt 0:00:40]} Rg7 {[%emt 0:00:39]} 37. Qxa7 {[%emt 0:00:23]} Rg4 {[%emt 0:00:15]} 38. Rc1 {[%emt 0:00:53]} Kd7 {[%emt 0:00:16]} 39. Qb6 {[%emt 0:00:18]} c5 {[%emt 0:00:43]} 40. Rd1 {[%emt 0:00:00]} 1-0

[Event "Romanian Championship 2024"]
[Site "Eforie Nord"]
[Date "2024.02.26"]
[Round "4.6"]
[White "Antal, Hunor-Zoltan"]
[Black "Manolache, Marius"]
[Result "1/2-1/2"]
[ECO "E90"]
[WhiteElo "2272"]
[BlackElo "2387"]
[Annotator "TA"]
[PlyCount "91"]
[EventDate "2024.02.24"]
[EventType "swiss"]
[EventCountry "ROU"]
[SourceTitle "playchess.com"]
[Source "ChessBase"]
[SourceQuality "1"]
[TimeControl "40/5400+30:900+30"]

{[%evp 13,91,27,47,47,57,62,65,49,50,6,16,6,17,18,16,22,73,56,52,56,66,6,0,0,3,7,10,-6,-9,-20,0,0,0,0,4,0,0,0,0,0,0,0,0,-18,-17,-16,0,0,0,-7,-3,-7,-8,-8,-8,-54,-79,-102,-99,-100,-103,-76,-4,-10,-12,-8,0,0,0,0,0,0,0,0,0,0,0,0,0,0]} 1. Nf3 {[%emt 0:00:29]} d6 {[%emt 0:00:23]} 2. c4 {[%emt 0:00:17]} Nf6 {[%emt 0:00:17]} 3. Nc3 {[%emt 0:00:12]} c6 {[%emt 0:03:05]} 4. d4 {[%emt 0:00:53]} g6 {[%emt 0:00:19]} 5. e4 {[%emt 0:01:32]} Bg7 {[%emt 0:00:07]} 6. h3 {[%emt 0:00:09]} O-O {[%emt 0:00:22]} 7. Bd3 {[%emt 0:00:05]} a6 {[%emt 0:01:32]} 8. O-O {[%emt 0:00:22]} b5 {[%emt 0:00:26]} 9. Re1 {[%emt 0:13:14]} Nfd7 {[%emt 0:06:26]} 10. Bg5 {[%emt 0:02:14] White is slightly better.} Re8 {[%emt 0:00:15]} 11. e5 {[%emt 0:16:50]} dxe5 {[%emt 0:01:02]} 12. dxe5 {[%emt 0:02:39] Black must now prevent e6.} Nc5 {[%emt 0:04:09]} 13. Bc2 {[%emt 0:05:38] Qxd8 would now be deadly.} Qxd1 {[%emt 0:01:09]} 14. Raxd1 {[%emt 0:00:10][%cal Og5e7]} ({Of course not} 14. Bxd1 Nd3 15. Re2 bxc4 $15) 14... Ne6 {[%emt 0:05:25] Black is weak on the dark squares} (14... Nbd7 $11 {keeps the balance.}) 15. Be3 $16 {[%emt 0:04:27]} Nf8 {[%emt 0:05:11]} 16. Be4 {[%emt 0:11:10] Hoping for Nd5.} Bf5 {[%emt 0:08:09]} 17. cxb5 {[%emt 0:01:25] White is much more active.} ({Better is} 17. Bxf5 $1 $14 gxf5 18. Nd4) 17... Bxe4 $11 {[%emt 0:01:50]} 18. Nxe4 {[%emt 0:02:07]} axb5 {[%emt 0:00:26][%cal Ob8d7]} 19. a3 {[%emt 0:00:52]} Nbd7 {[%emt 0:02:50][%cal Bb8d7,Bd7b6,Bb6c4][%mdl 32]} 20. Bd4 {[%emt 0:05:01][%cal Oe5e6]} Ne6 {[%emt 0:07:22]} 21. Bc3 {[%emt 0:00:36]} Nb6 {[%emt 0:06:30]} 22. Nd4 {[%emt 0:04:41]} Nxd4 {[%emt 0:03:25]} 23. Bxd4 {[%emt 0:00:06]} Nc4 {[%emt 0:00:16]} 24. Nd2 {[%emt 0:01:34]} Nxd2 {[%emt 0:13:25]} 25. Rxd2 {[%emt 0:00:06]} Red8 {[%emt 0:00:19]} 26. Red1 {[%emt 0:01:04]} Bh6 {[%emt 0:05:36]} 27. Rd3 {[%emt 0:01:10]} Rd5 {[%emt 0:04:44]} 28. Bc3 {[%emt 0:00:13]} e6 {[%emt 0:01:20]} 29. Rxd5 {[%emt 0:03:02]} cxd5 {[%emt 0:00:08][%mdl 4096] Endgame. KRB-KRB} 30. Rd4 {[%emt 0:08:40]} Bf8 {[%emt 0:00:39] Against Rb4} 31. Bb4 {[%emt 0:00:26]} Ra4 {[%emt 0:01:41] aiming for ...Bxb4.} 32. b3 {[%emt 0:01:31]} Ra6 {[%emt 0:00:10]} 33. Bxf8 {[%emt 0:05:01]} Kxf8 {[%emt 0:00:05] KR-KR} 34. Rb4 {[%emt 0:00:05]} (34. a4 $1 $11) 34... Rxa3 $15 {[%emt 0:00:05]} 35. Rxb5 {[%emt 0:00:02] [#]} Ra1+ $1 {[%emt 0:00:17]} 36. Kh2 {[%emt 0:00:04]} Re1 {[%emt 0:00:27]} 37. f4 {[%emt 0:00:39] [#]} Re4 {[%emt 0:02:26]} (37... h6 $1 $17 38. g3 Re2+ 39. Kg1 g5) 38. Rb8+ $11 {[%emt 0:00:59] The position is equal.} Kg7 {[%emt 0:00:24]} 39. Kg3 {[%emt 0:00:08]} g5 {[%emt 0:04:24]} 40. fxg5 {[%emt 0:00:00]} Rxe5 {[%emt 0:00:00]} 41. h4 {[%emt 0:03:39]} Re4 {[%emt 0:03:57]} 42. b4 {[%emt 0:00:33]} d4 {[%emt 0:01:40]} 43. b5 {[%emt 0:02:08] b6 is the strong threat.} d3 {[%emt 0:03:52]} 44. Rd8 {[%emt 0:00:10] Prevents Rd4.} Rb4 {[%emt 0:00:26]} 45. Rxd3 {[%emt 0:00:06]} Rxb5 {[%emt 0:00:03]} 46. Rd4 {[%emt 0:00:52] Weighted Error Value: White=0.09 (flawless) /Black=0.07 (flawless) .  Mistake:       	White=2     	Black=2      Inaccurate:     	White=1     	---        OK:         	White=16    	Black=18     Best:        	White=1     	Black=1      Strong:       	---       	Black=1} 1/2-1/2

[Event "Romanian Championship 2024"]
[Site "Eforie Nord"]
[Date "2024.02.26"]
[Round "4.7"]
[White "Radu, David Cr."]
[Black "Cosma, Ioan"]
[Result "0-1"]
[ECO "B65"]
[WhiteElo "2142"]
[BlackElo "2316"]
[Annotator "TA"]
[PlyCount "106"]
[EventDate "2024.02.24"]
[EventType "swiss"]
[EventCountry "ROU"]
[SourceTitle "playchess.com"]
[Source "ChessBase"]
[SourceQuality "1"]
[TimeControl "40/5400+30:900+30"]

{[%evp 23,106,6,28,-30,-12,0,0,-8,73,45,51,56,73,66,146,140,232,245,358,368,400,160,152,134,116,120,114,20,47,0,0,-4,-17,0,0,-16,22,-49,-53,-52,-39,-80,-49,-25,-46,-377,0,0,0,0,133,135,166,133,191,187,183,160,216,216,243,212,218,182,182,-299,-225,-381,-373,-374,-265,-377,-367,-360,-290,-716,-704,-878,-988,-1153,-1140,-1045,-954,-946,-900]} 1. e4 {[%emt 0:00:09]} c5 {[%emt 0:00:44]} 2. Nf3 {[%emt 0:00:12]} Nc6 {[%emt 0:00:35]} 3. d4 {[%emt 0:00:28]} cxd4 {[%emt 0:00:14]} 4. Nxd4 {[%emt 0:00:07]} Nf6 {[%emt 0:00:41]} 5. Nc3 {[%emt 0:01:03]} d6 {[%emt 0:00:06]} 6. Bg5 {[%emt 0:01:28]} e6 {[%emt 0:00:14]} 7. Qd2 {[%emt 0:00:58]} Be7 {[%emt 0:00:28]} 8. O-O-O {[%emt 0:08:14]} Nxd4 {[%emt 0:00:39]} 9. Qxd4 {[%emt 0:00:08]} O-O {[%emt 0:00:04]} 10. f4 {[%emt 0:05:49]} Qa5 {[%emt 0:00:32]} 11. Kb1 {[%emt 0:07:06] is recently more successful than 11.Bc4.} h6 {[%emt 0:00:34] B65: Sicilian: Richter-Rauzer: 7...Be7 8 0-0-0 0-0 9 f4 Nxd4.} 12. Bh4 {[%emt 0:01:26]} Rd8 {[%emt 0:01:08]} 13. h3 {[%emt 0:04:29]} (13. Be1 $142 Qc7 14. Qe3) 13... Bd7 {[%emt 0:04:00]} 14. Bd3 {[%emt 0:15:22]} Rac8 {[%emt 0:11:25]} 15. Be1 $146 {[%emt 0:08:51]} ({Predecessor:} 15. Qf2 Rc6 16. g4 Rb6 17. Ne2 Rc8 18. b3 Bb5 19. Qe1 Qa3 20. Nc1 d5 21. Bxf6 Bxf6 {1-0 Fong,Y (2149)-Grahesh,Y (1919) Wch U20 53rd 2014 (2)}) 15... e5 {[%emt 0:06:04]} (15... Qc7 $11) 16. Qf2 $16 {[%emt 0:02:54]} (16. Nd5 Qxd5 17. Qxd5 Nxd5 18. exd5 exf4 $15) 16... Qc7 {[%emt 0:03:25]} 17. g4 {[%emt 0:00:47]} exf4 {[%emt 0:01:16]} 18. Qxf4 {[%emt 0:00:15]} a6 {[%emt 0:03:13]} ({Black should try} 18... Qc5 $14) 19. Rf1 $16 {[%emt 0:02:11]} Be6 {[%emt 0:00:41] [#]} (19... Rf8 $16) 20. Nd5 $1 $18 {[%emt 0:10:28]} Bxd5 {[%emt 0:01:54]} (20... Nxd5 $2 21. exd5 Qd7 22. dxe6 $18) (20... Qd7 $142 21. Bh4 Bxd5 (21... Nxd5 22. exd5 Bxh4 23. dxe6 $16) 22. exd5 Rc5) 21. exd5 $18 {[%emt 0:00:09]} Bf8 {[%emt 0:09:17]} 22. Bh4 {[%emt 0:06:27]} (22. g5 $18 {has better winning chances.} hxg5 23. Qxg5) 22... Re8 $16 {[%emt 0:03:26]} 23. Qf5 {[%emt 0:04:12]} Re5 {[%emt 0:01:55]} 24. Qf3 {[%emt 0:02:12]} Rce8 {[%emt 0:01:43]} (24... Nxd5 25. Bg3 Nf6 26. Bf4 $16 (26. Bxe5 dxe5 27. h4 Qc6 $18)) 25. Bf2 {[%emt 0:04:01]} (25. Bxf6 $16 gxf6 26. Qxf6) 25... Nxd5 $11 {[%emt 0:03:26]} 26. Bd4 {[%emt 0:01:00]} (26. h4 $14) 26... Ne3 $1 $11 {[%emt 0:00:07]} 27. Bxe3 {[%emt 0:03:18]} Rxe3 {[%emt 0:00:07]} 28. Qd5 {[%emt 0:00:01]} R8e6 {[%emt 0:05:50]} (28... Rxh3 29. Rxf7 Qc6 (29... Qxf7 $2 30. Bh7+ Kxh7 31. Qxf7 $18) 30. Bc4 (30. Rxb7+ Qxd5 31. a3 Rxd3 32. Rf1 Qxb7 33. g5 Rxa3 34. gxh6 gxh6 35. Rd1 Bg7 36. c3 Qe4+ 37. Kc1 Ra1+ 38. Kd2 Qe2#) 30... Qxd5 31. Bxd5 $18) 29. h4 {[%emt 0:01:00]} Qe7 {[%emt 0:03:10]} 30. g5 {[%emt 0:02:35]} (30. Bc4 $11) 30... R3e5 $15 {[%emt 0:06:19]} 31. Qh1 {[%emt 0:01:18]} d5 {[%emt 0:01:46]} 32. Bf5 {[%emt 0:01:29]} Rd6 {[%emt 0:03:19]} (32... Rb6 {is interesting.} 33. Qg1 Qb4 34. b3 hxg5 35. Qxg5 Qc3) 33. gxh6 {[%emt 0:00:25]} Rxh6 {[%emt 0:02:45]} 34. Rxd5 $2 {[%emt 0:00:27][%mdl 8192] [#]} ({Better is} 34. h5 $15) 34... g6 $2 {[%emt 0:07:21]} (34... Rxh4 35. Rxe5 Rxh1 36. Rxh1 Qxe5 37. Bh7+ Kh8 38. Bg6+ Kg8 39. Bh7+ Kh8 40. Bg6+ Kg8 41. Bh7+ $11) (34... Rf6 $1 $19 35. Rxe5 Qxe5) 35. Rxe5 $11 {[%emt 0:04:26]} Qxe5 {[%emt 0:00:08]} 36. Bd3 {[%emt 0:00:12]} Bg7 {[%emt 0:07:06]} (36... b5 $11) 37. Qxb7 $16 {[%emt 0:00:15]} f5 {[%emt 0:01:01]} 38. c3 {[%emt 0:03:00]} (38. Qxa6 $2 Qxb2#) 38... Rxh4 {[%emt 0:01:14]} (38... a5 $16) 39. Qxa6 $18 {[%emt 0:00:28]} Rh2 {[%emt 0:02:02]} 40. Bc2 {[%emt 0:00:00]} ({Worse is} 40. Qxg6 Rxb2+ 41. Ka1 Rh2 $11) 40... Qg3 {[%emt 0:00:00]} (40... Qe2 $16 {was necessary.} 41. Qxe2 (41. Qxg6 $2 {leads to mate.} Qxf1+) 41... Rxe2) 41. a4 $18 {[%emt 0:04:51]} Kh7 {[%emt 0:05:56]} 42. Qd3 {[%emt 0:01:02]} Qe5 {[%emt 0:01:17]} 43. Rf3 {[%emt 0:01:30]} Bh6 {[%emt 0:02:05]} 44. Ka2 $4 {[%emt 0:02:04][%mdl 8192]} (44. Qd7+ $18 Bg7 45. Qd3) 44... Rd2 {[%emt 0:00:49]} 45. Qc4 $2 {[%emt 0:04:04]} (45. Qb5 Qxb5 46. axb5 Rxc2 47. b6) 45... Rxc2 $19 {[%emt 0:00:48]} 46. Rd3 {[%emt 0:00:04]} Qh2 {[%emt 0:07:29]} 47. Rd7+ {[%emt 0:01:31]} (47. Qf7+ {is a better defense.} Bg7 48. Qb3) 47... Bg7 $19 {[%emt 0:00:05]} 48. Qb3 {[%emt 0:03:15]} Rd2 {[%emt 0:00:59]} 49. Rb7 $2 {[%emt 0:00:41]} (49. Rxd2 Qxd2 50. a5) 49... Qe5 $19 {[%emt 0:01:10]} 50. Rb5 {[%emt 0:00:49]} Qxc3 {[%emt 0:01:01]} 51. a5 {[%emt 0:00:53]} Qxb3+ {[%emt 0:03:36]} 52. Rxb3 {[%emt 0:00:02]} Kh6 {[%emt 0:01:26]} 53. a6 {[%emt 0:00:22]} Bxb2 {[%emt 0:05:20]} 0-1

[Event "Romanian Championship 2024"]
[Site "Eforie Nord"]
[Date "2024.02.26"]
[Round "4.8"]
[White "Ghimpu, Samuel-Timotei"]
[Black "Voiteanu, Gabriel"]
[Result "1-0"]
[ECO "A13"]
[WhiteElo "2467"]
[BlackElo "2151"]
[Annotator "TA"]
[PlyCount "71"]
[EventDate "2024.02.24"]
[EventType "swiss"]
[EventCountry "ROU"]
[SourceTitle "playchess.com"]
[Source "ChessBase"]
[SourceQuality "1"]
[TimeControl "40/5400+30:900+30"]

{[%evp 11,71,0,2,-5,0,0,0,0,21,37,0,2,9,0,11,17,10,10,32,10,13,0,8,10,29,16,33,11,18,17,16,0,46,54,45,40,49,49,45,18,18,9,22,26,26,23,109,128,101,92,251,258,239,239,301,308,300,314,310,314,291,306]} 1. c4 {[%emt 0:00:10]} e6 {[%emt 0:05:44]} 2. g3 {[%emt 0:00:43]} d5 {[%emt 0:01:36]} 3. Bg2 {[%emt 0:01:15]} dxc4 {[%emt 0:02:18]} 4. Qa4+ {[%emt 0:00:30]} Nd7 {[%emt 0:01:42]} 5. Qxc4 {[%emt 0:03:59]} a6 {[%emt 0:00:14]} 6. Nf3 {[%emt 0:01:49][%cal Bg1f3,Bf3d4,Bd4c6][%mdl 32]} b5 {[%emt 0:01:24]} 7. Qh4 {[%emt 0:00:01] [#] Hoping for Qxd8+.} Be7 {[%emt 0:03:58]} 8. Qe4 {[%emt 0:00:04]} Rb8 {[%emt 0:01:39]} 9. Nd4 {[%emt 0:00:26] The position is equal.} Bb7 {[%emt 0:12:29]} 10. Nc6 {[%emt 0:01:02]} Ngf6 {[%emt 0:03:50]} 11. Qc2 {[%emt 0:04:24]} Bxc6 {[%emt 0:00:42]} 12. Qxc6 {[%emt 0:01:34]} Rb6 {[%emt 0:03:51]} 13. Qc2 {[%emt 0:01:05]} O-O {[%emt 0:01:15]} 14. O-O {[%emt 0:00:46]} Nd5 {[%emt 0:01:54]} 15. d3 {[%emt 0:05:18]} c5 {[%emt 0:01:34]} 16. a4 {[%emt 0:00:46]} N7f6 {[%emt 0:05:23]} 17. Bd2 {[%emt 0:03:23] White wants to play Ba5.} Qd7 {[%emt 0:02:33]} 18. Rc1 {[%emt 0:05:10]} bxa4 {[%emt 0:06:55]} 19. Na3 {[%emt 0:09:44]} Rb3 {[%emt 0:04:31]} 20. Nc4 {[%emt 0:00:55]} Rfb8 {[%emt 0:01:02]} 21. Ra3 {[%emt 0:06:48]} Nb4 {[%emt 0:07:20]} (21... Ne8 $11) 22. Rxb3 $14 {[%emt 0:00:41]} axb3 {[%emt 0:00:57]} 23. Qxb3 {[%emt 0:00:10]} Nfd5 {[%emt 0:02:52]} 24. Qa3 {[%emt 0:16:17]} Qb5 {[%emt 0:01:07]} 25. e4 {[%emt 0:23:44]} Nb6 {[%emt 0:01:30]} 26. Be3 {[%emt 0:00:23]} Nxc4 {[%emt 0:06:39]} 27. Rxc4 {[%emt 0:00:09]} a5 {[%emt 0:12:55]} 28. Bf1 {[%emt 0:00:30]} Na6 {[%emt 0:03:45]} (28... Qb6 $11) 29. d4 $16 {[%emt 0:00:28][%cal Rd4c5]} Qxb2 {[%emt 0:02:13]} ({Don't blunder} 29... cxd4 $2 30. Qxe7 dxe3 31. Rc8+ Rxc8 32. Bxb5 $18) 30. Qxa5 {[%emt 0:02:53]} Qb6 {[%emt 0:00:22] Loses the game.} (30... cxd4 $16 {is a better defense.} 31. Bxd4 Qb7) 31. Qxb6 $18 {[%emt 0:00:09]} Rxb6 {[%emt 0:00:02][%cal Bb8b6,Bb6c6,Bc6c7][%mdl 32]} 32. dxc5 {[%emt 0:00:07]} Rc6 {[%emt 0:00:34]} 33. Ra4 {[%emt 0:00:09] White has a decisive advantage.} Nxc5 {[%emt 0:01:29]} 34. Ra8+ {[%emt 0:00:01]} Bf8 {[%emt 0:00:05]} 35. Bb5 {[%emt 0:00:02]} Rc7 {[%emt 0:00:07] [#]} 36. Bf4 $1 {[%emt 0:00:02] Weighted Error Value: White=0.05 (flawless) /Black=0.20 (precise) .  Mistake:       	---       	Black=3      Inaccurate:     	White=1     	---        OK:         	White=11    	Black=10     Best:        	White=4     	Black=1      Strong:       	White=1     	---} 1-0